{"text_format":"3","workbook":"xlsx","n_sheets":1,"sheets":["PRICING SCHEDULE"],"not_rendered":{"images":1,"defined_names":2},"read":"whole","date_system":"1900"}

{"sheet":"PRICING SCHEDULE","index":0,"n_rows":53,"n_cols":16384,"rows_kept":53,"merged":[[11,2,11,3],[12,2,12,3],[12,5,14,5],[13,2,13,3],[14,2,14,3],[16,4,16,6],[16,7,16,9],[16,10,16,12],[49,1,52,1],[49,2,49,3],[49,4,49,5],[50,2,50,3],[51,2,51,3],[51,4,51,5],[52,2,52,3],[52,4,52,5]]}
[null,"SUPPLY CHAIN MANAGEMENT"]
[null,"Pricing schedule"]
["RFB No","RFB 2794-2023"]
["RFB Title","APPOINTMENT OF A SERVICE PROVIDER FOR THE DESIGN, SUPPLY, CONFIGURATION, INSTALLATION, MAINTENANCE AND SUPPORT OF A STRUCTURED LAN SWITCH AND WIRELESS INFRASTRUCTURE TO SITA ON BEHALF OF THE DEPARTMENT OF BASIC EDUCATION (DBE) FOR A PERIOD OF 36 MONTHS (3 YEARS)."]
["Bidder Name "]
[]
["1. INSTRUCTION FOR COMPLETING THE PRICING SCHEDULE"]
["(a)  Bidder must complete/enter YELLOW cells only"]
["(b)  Unit and Line prices must be VAT EXCLUSIVE and in South African Rand (ZAR) currency."]
["(c) The price must include all cost to deliver the goods or render the service, including all applicable taxes, duty fees, logistics/delivery, storage, labour, overtime and subsistance and travel"]
["(d)  Prices that are dependent on Rate of Exchange (ROE) must use ROE indicated below, then enter in Column \"Forex %\" the percentage of the price that is ROE dependent (0% means the price is not ROE dependent)"]
[null,"Foreign currency","South African Rand (ZAR) exchange rate "]
[null,"1 US Dollar",{"v":18.87,"d":"R18.87"},null,null,"Mark with an X, which ROE is applicable"]
[null,"1 Euro",{"v":20.75,"d":"R20.75"}]
[null,"1 Pound (UK)",{"v":23.98,"d":"R23.98"}]
[]
[{"$nulls":4},"YEAR 1",null,null,"YEAR 2",null,null,"YEAR 3",null,null,"TOTAL"]
["Item No","Goods/Service description","Unit of measure","Forex %","Qty ","Unit Price \n(Excl VAT)","Line Price Y1","Qty","Unit Price \n(Excl VAT)","Line Price Y2","Qty","Unit Price \n(Excl VAT)","Line Price Y3","Line Price Term \n(Excl VAT)","Forex Price portion","BRAND / MODEL","Price clarification comment"]
[null,"* Access Switches, Core Switch and Wi-Fi Solution must be able to seamlessly integrate and operate with each other. * The solution to be able to accommodate a VOIP, QoS."]
[1,"SUPPLY SWITCH EQUIPMENT",{"$nulls":4},{"$f":"SUM(G21:G29)","v":0},null,null,{"$f":"SUM(J21:J29)","v":0},null,null,{"$f":"SUM(M21:M29)","v":0},{"$f":"SUM(N21:N29)","v":0}]
["1.1","Monitoring Tool Solution for both WI-FI and Switches","Each",{"v":0,"d":"0%"},1,0,{"$f":"E21*F21","v":0},0,null,{"$f":"I21","v":0},0,null,{"$f":"L21","v":0},{"$f":"G21+J21+M21","v":0},{"$f":"D21*N21","v":0}]
["1.2","Core Switch with a PoE, QoS,48 GBE Fibre Ports, 10GBE SFP (High availability)  with licences","Each",{"v":0,"d":"0%"},2,0,{"$f":"E22*F22","v":0},0,null,{"$f":"I22","v":0},0,null,{"$f":"L22","v":0},{"$f":"G22+J22+M22","v":0},{"$f":"D22*N22","v":0}]
["1.3","Full redundant Fan and power supplies for core switch (Redundancy)","Each",{"v":0,"d":"0%"},4,0,0,0,null,0,0,null,0,0,0]
["1.4","48G-PoE, QoS,  switches with minimum 2X10GBE uplink ","Each",{"v":0,"d":"0%"},58,0,0,0,null,0,0,null,0,0,0]
["1.5","Redundant connectors","Each",{"v":0,"d":"0%"},2,0,0,0,null,0,0,null,0,0,0]
["1.6","10G SFP Modules for access switches ","Each",{"v":0,"d":"0%"},36,0,{"$f":"E26*F26","v":0},0,null,0,0,null,0,0,0]
["1.7","10G SFP Modules for links from Core switches to access switches ","Each",{"v":0,"d":"0%"},40,0,{"$f":"E27*F27","v":0},0,null,0,0,null,0,0,0]
["1.8","Stacking Connectors","Each",{"v":0,"d":"0%"},58,0,0,0,null,0,0,null,0,0,0]
["1.9","SA AC types A power Connectors","Each",{"v":0,"d":"0%"},62,0,0,0,null,0,0,null,0,0,0]
[2,"SUPPLY WIRELESS LAN EQUIPMENT",{"$nulls":3},0,{"$f":"SUM(G31:G34)","v":0},null,null,{"$f":"SUM(J31:J34)","v":0},null,null,{"$f":"SUM(M31:M34)","v":0},{"$f":"SUBTOTAL(9, N31:N31)","v":0},{"$f":"SUBTOTAL(9, O31:O31)","v":0}]
["2.1","Wireless LAN controller with redundant power supply, 2 x GigE, IP4 and IP6, max 100 APs, Incl Network Management Tool and incl. licenses with growth. WIFI 6 Capability High Availability","Each",{"v":0,"d":"0%"},2,0,{"$f":"E31*F31","v":0},0,null,{"$f":"I31","v":0},0,null,{"$f":"L31","v":0},{"$f":"G31+J31+M31","v":0},0]
["2.2","10G SFP modules for controllers","Each",{"v":0,"d":"0%"},4,0,0,0]
["2.3","Wireless LAN Access Point (AP), IEEE 802.11ax, MU-MIMO-OFDMA, 2.4 and 5GHz, GigE i/f, POE, IP4 and IP6, indoor ceiling mountable  ","Each",{"v":0,"d":"0%"},55,0,0,0]
["2.6","AP Licenses","Each",{"v":0,"d":"0%"},55,0,0,0,null,{"$f":"I34","v":0},0,null,{"$f":"L34","v":0},{"$f":"G34+J34+M34","v":0}]
[3,"NETWORK: GENERAL SERVICES",{"$nulls":4},{"$f":"SUM(G36:G42)","v":0},null,null,{"$f":"SUM(J36:J42)","v":0},null,null,{"$f":"SUM(M36:M42)","v":0},{"$f":"SUBTOTAL(9, N36:N42)","v":0},{"$f":"SUBTOTAL(9, O36:O42)","v":0}]
["3.1","Configuration and installation of Switches","Sum",{"v":0,"d":"0%"},1,0,0,1,0,{"$f":"I36","v":0},1,0,{"$f":"L36","v":0},{"$f":"G36+J36+M36","v":0},0]
["3.2","Configuration and installation of WI-FI infrastructure","Sum",{"v":0,"d":"0%"},1,0,{"$f":"E37*F37","v":0},1,0,{"$f":"I37","v":0},1,null,{"$f":"L37","v":0},{"$f":"G37+J37+M37","v":0}]
["3.3","Project Management","Each",{"v":0,"d":"0%"},1,0,{"$f":"E38*F38","v":0},0,null,0,0,null,0,0,{"$f":"D38*N38","v":0},{"$nulls":16368},{"$f":"SUM(O38:XFC38)","v":0}]
["3.4","Copies of signoff documentation 1 + 3 copies (Detail to be included to be confirmed with SITA project manager.","Each",{"v":0,"d":"0%"},4,0,0,0,null,0,0,null,0,0,0]
["3.5","Mounting and Labelling","Sum",{"v":0,"d":"0%"},1,0,0,1,null,0,1,null,0,0,0]
["3.6","Configuration and installation of Monitoring tool","Each",{"v":0,"d":"0%"},1,0,0,0,null,0,0,null,0,0,0]
["3.7","Maintenance and Support for 3 years","Each",{"v":0,"d":"0%"},1,0,0,1,null,0,1,null,0,0,0]
["3.8","Testing of all installed equipment and certification","Sum",{"v":0,"d":"0%"},1,0,0,1,null,0,1,null,0]
["3.9","Training/ Skill Transfer on the newly installed Infrastructure – DBE/SITA IT Staff","Each",{"v":0,"d":"0%"},4,0,0,0,null,0,0,null,0]
[null,"TOTAL BID PRICE  (EXCL VAT)",{"$nulls":4},{"$f":"G20+G30+G35","v":0},null,null,{"$f":"J20+J30+J35","v":0},null,null,{"$f":"M20+M30+M35","v":0},{"$f":"N20+N30+N35","v":0},{"$f":"SUBTOTAL(9,O21:O42)","v":0}]
[null,"VAT (@15%)",{"$nulls":4},{"$f":"G45*0.15","v":0},null,null,{"$f":"J45*0.15","v":0},null,null,{"$f":"M45*0.15","v":0},{"$f":"N45*0.15","v":0}]
[null,"TOTAL  BID PRICE (INCL VAT)",{"$nulls":4},{"$f":"G45+G46","v":0},null,null,{"$f":"J45+J46","v":0},null,null,{"$f":"M45+M46","v":0},{"$f":"N45+N46","v":0}]
[]
[]
[null,"I, the bidder, confirm that the price(s) and rate(s) quoted cover all the goods and/or works specified in the bidding documents; that the price(s) or rate(s) cover all my obligations and I accept that any mistakes regarding price(s), rate(s) or calculations will be at my own risk.\n[Note: First convert to PDF, then add signature]"]
[null,null,"Name",null,"Capacity"]
[]
[null,null,"Signature (above)",null,"Date"]